[Event "Late-Titled-Tuesday-Blitz-February-27-2024"]
[Site "Chess.com"]
[Date "2024.02.27"]
[Round "5"]
[White "IM_Tissir"]
[Black "jk13"]
[Result "1-0"]
[WhiteElo "2506"]
[BlackElo "2671"]
[TimeControl "180+1"]
[EndTime "14:56:25 PST"]
[Termination "IM_Tissir won by resignation"]

1. e4 {[%clk 0:02:56.4]} 1... e5 {[%clk 0:03:00]} 2. Nf3 {[%clk 0:02:54.3]} 2...
Nc6 {[%clk 0:03:00.7]} 3. Bc4 {[%clk 0:02:54.2]} 3... Bc5 {[%clk 0:03:00.6]} 4.
c3 {[%clk 0:02:54.1]} 4... Nf6 {[%clk 0:03:01.2]} 5. d3 {[%clk 0:02:54.2]} 5...
O-O {[%clk 0:03:01]} 6. Bb3 {[%clk 0:02:54.3]} 6... d5 {[%clk 0:03:01.3]} 7. Qe2
{[%clk 0:02:54]} 7... h6 {[%clk 0:02:59.8]} 8. Nbd2 {[%clk 0:02:53.5]} 8... Re8
{[%clk 0:02:59.8]} 9. Nf1 {[%clk 0:02:53.4]} 9... a5 {[%clk 0:02:30.3]} 10. a4
{[%clk 0:02:48.2]} 10... Be6 {[%clk 0:02:24]} 11. Bc2 {[%clk 0:02:45.1]} 11...
dxe4 {[%clk 0:02:17.3]} 12. dxe4 {[%clk 0:02:44.7]} 12... Ng4 {[%clk 0:02:13.3]}
13. Ne3 {[%clk 0:02:43.4]} 13... Nxe3 {[%clk 0:02:11.8]} 14. Bxe3 {[%clk
0:02:44.3]} 14... Bxe3 {[%clk 0:02:12.2]} 15. Qxe3 {[%clk 0:02:43.6]} 15... Bc4
{[%clk 0:02:08.5]} 16. Rd1 {[%clk 0:01:54.7]} 16... Qe7 {[%clk 0:01:56.2]} 17.
g4 {[%clk 0:01:48.2]} 17... Rad8 {[%clk 0:01:53.2]} 18. h4 {[%clk 0:01:46.3]}
18... Qe6 {[%clk 0:01:45.9]} 19. Rg1 {[%clk 0:01:42.3]} 19... Bb3 {[%clk
0:01:41.8]} 20. Qe2 {[%clk 0:01:01.5]} 20... Bxc2 {[%clk 0:01:28.4]} 21. Qxc2
{[%clk 0:01:00.1]} 21... Qc4 {[%clk 0:01:29]} 22. Nd2 {[%clk 0:00:49.8]} 22...
Qc5 {[%clk 0:01:26.1]} 23. Qb3 {[%clk 0:00:42.3]} 23... Rd6 {[%clk 0:00:56.3]}
24. Qc4 {[%clk 0:00:35]} 24... Qb6 {[%clk 0:00:51.6]} 25. Qb5 {[%clk 0:00:34.5]}
25... Qa7 {[%clk 0:00:47.8]} 26. Qe2 {[%clk 0:00:10.8]} 26... Red8 {[%clk
0:00:46.9]} 27. g5 {[%clk 0:00:11.4]} 27... Kh8 {[%clk 0:00:32.4]} 28. gxh6
{[%clk 0:00:10.7]} 28... Rxh6 {[%clk 0:00:32.6]} 29. Qg4 {[%clk 0:00:10.9]}
29... Rg6 {[%clk 0:00:31.8]} 30. Qh5+ {[%clk 0:00:11.1]} 30... Kg8 {[%clk
0:00:30.2]} 31. Rxg6 {[%clk 0:00:11]} 31... fxg6 {[%clk 0:00:31.1]} 32. Qxg6
{[%clk 0:00:11.1]} 32... Qc5 {[%clk 0:00:30.3]} 33. Qe6+ {[%clk 0:00:11.2]}
33... Kh8 {[%clk 0:00:30.4]} 34. Nf3 {[%clk 0:00:11.4]} 34... Rf8 {[%clk
0:00:25.4]} 35. Qg4 {[%clk 0:00:07.6]} 35... Ne7 {[%clk 0:00:18.8]} 36. Rd7
{[%clk 0:00:07.4]} 36... b6 {[%clk 0:00:16.9]} 37. Kd1 {[%clk 0:00:07.1]} 37...
Re8 {[%clk 0:00:13.7]} 38. Qh5+ {[%clk 0:00:07.4]} 38... Kg8 {[%clk 0:00:13.1]}
39. Qxe8+ {[%clk 0:00:07.7]} 39... Kh7 {[%clk 0:00:14]} 40. Qxe7 {[%clk
0:00:08]} 1-0

[Event "Late-Titled-Tuesday-Blitz-February-27-2024"]
[Site "Chess.com"]
[Date "2024.02.27"]
[Round "5"]
[White "Escudito"]
[Black "martinmena"]
[Result "1-0"]
[WhiteElo "2414"]
[BlackElo "2247"]
[TimeControl "180+1"]
[EndTime "14:56:25 PST"]
[Termination "Escudito won on time"]

1. d4 {[%clk 0:02:55.5]} 1... d5 {[%clk 0:02:55.9]} 2. c4 {[%clk 0:02:48.9]}
2... e6 {[%clk 0:02:54.8]} 3. g3 {[%clk 0:02:48.3]} 3... Nf6 {[%clk 0:02:54.2]}
4. Nf3 {[%clk 0:02:46.7]} 4... Be7 {[%clk 0:02:54.4]} 5. Bg2 {[%clk 0:02:45.7]}
5... O-O {[%clk 0:02:54.7]} 6. O-O {[%clk 0:02:45.9]} 6... dxc4 {[%clk 0:02:55]}
7. Qc2 {[%clk 0:02:46.5]} 7... a6 {[%clk 0:02:53.9]} 8. a4 {[%clk 0:02:47.1]}
8... Bd7 {[%clk 0:02:54.3]} 9. Qxc4 {[%clk 0:02:47.3]} 9... Bc6 {[%clk
0:02:53.7]} 10. Bg5 {[%clk 0:02:47]} 10... Bd5 {[%clk 0:02:33.5]} 11. Qc2 {[%clk
0:02:46.2]} 11... Be4 {[%clk 0:02:30.5]} 12. Qc1 {[%clk 0:02:45.9]} 12... Nbd7
{[%clk 0:02:26.9]} 13. Nc3 {[%clk 0:02:41.6]} 13... Bc6 {[%clk 0:02:20.5]} 14.
Qc2 {[%clk 0:02:34.2]} 14... h6 {[%clk 0:01:51.6]} 15. Bxf6 {[%clk 0:02:31.6]}
15... Bxf6 {[%clk 0:01:49.7]} 16. e4 {[%clk 0:02:30.7]} 16... Nb6 {[%clk
0:01:49.2]} 17. a5 {[%clk 0:02:27.3]} 17... Nd7 {[%clk 0:01:38.7]} 18. Rfd1
{[%clk 0:02:12.2]} 18... Be7 {[%clk 0:00:40.8]} 19. Rac1 {[%clk 0:01:15.7]}
19... Rc8 {[%clk 0:00:35.3]} 20. d5 {[%clk 0:01:10.5]} 20... exd5 {[%clk
0:00:34.2]} 21. exd5 {[%clk 0:01:03.4]} 21... Bb5 {[%clk 0:00:34.2]} 22. Nxb5
{[%clk 0:01:03.1]} 22... axb5 {[%clk 0:00:32.8]} 23. Qb3 {[%clk 0:01:00.7]}
23... c6 {[%clk 0:00:24.7]} 24. dxc6 {[%clk 0:00:55.7]} 24... bxc6 {[%clk
0:00:25.6]} 25. Bh3 {[%clk 0:00:54.4]} 25... Nc5 {[%clk 0:00:17]} 26. Qe3 {[%clk
0:00:49.4]} 26... Qc7 {[%clk 0:00:03.8]} 27. Rxc5 {[%clk 0:00:41.9]} 27... Bxc5
{[%clk 0:00:03]} 28. Qxc5 {[%clk 0:00:42.8]} 28... Rcd8 {[%clk 0:00:02.9]} 29.
Rc1 {[%clk 0:00:34.7]} 29... Rd6 {[%clk 0:00:02.4]} 30. Qxb5 {[%clk 0:00:22.8]}
30... cxb5 {[%clk 0:00:01.3]} 31. Rxc7 {[%clk 0:00:21.8]} 31... Ra6 {[%clk
0:00:02.2]} 32. b4 {[%clk 0:00:21]} 32... Re8 {[%clk 0:00:01.5]} 33. Nd4 {[%clk
0:00:19]} 33... Re4 {[%clk 0:00:02]} 34. Nc6 {[%clk 0:00:15.8]} 34... Rc4 {[%clk
0:00:02]} 35. Ne7+ {[%clk 0:00:15.4]} 35... Kh7 {[%clk 0:00:02.2]} 36. Rxc4
{[%clk 0:00:13.8]} 36... bxc4 {[%clk 0:00:02.1]} 37. Nd5 {[%clk 0:00:13.4]}
37... Rd6 {[%clk 0:00:01.3]} 38. Nc3 {[%clk 0:00:13.2]} 1-0

[Event "Late-Titled-Tuesday-Blitz-February-27-2024"]
[Site "Chess.com"]
[Date "2024.02.27"]
[Round "5"]
[White "RantomOpening"]
[Black "vladoboch"]
[Result "1-0"]
[WhiteElo "2570"]
[BlackElo "2430"]
[TimeControl "180+1"]
[EndTime "14:56:30 PST"]
[Termination "RantomOpening won by resignation"]

1. e4 {[%clk 0:03:00]} 1... c5 {[%clk 0:02:51.2]} 2. c3 {[%clk 0:03:00.1]} 2...
Nf6 {[%clk 0:02:49.3]} 3. e5 {[%clk 0:03:00.3]} 3... Nd5 {[%clk 0:02:49.5]} 4.
d4 {[%clk 0:03:01.2]} 4... cxd4 {[%clk 0:02:49.6]} 5. Nf3 {[%clk 0:03:02.1]}
5... Nc6 {[%clk 0:02:50]} 6. cxd4 {[%clk 0:03:01.8]} 6... e6 {[%clk 0:02:50.3]}
7. Bc4 {[%clk 0:03:02.1]} 7... Nb6 {[%clk 0:02:49.8]} 8. Bb5 {[%clk 0:03:02.5]}
8... d6 {[%clk 0:02:31.2]} 9. Nc3 {[%clk 0:02:58.3]} 9... dxe5 {[%clk 0:02:28]}
10. Nxe5 {[%clk 0:02:59.2]} 10... Bd7 {[%clk 0:02:27.7]} 11. Nxd7 {[%clk
0:02:59.6]} 11... Qxd7 {[%clk 0:02:27.4]} 12. O-O {[%clk 0:03:00.2]} 12... Bd6
{[%clk 0:02:27.4]} 13. Qg4 {[%clk 0:02:58]} 13... O-O {[%clk 0:02:23.7]} 14. Be3
{[%clk 0:02:56.2]} 14... a6 {[%clk 0:02:18.5]} 15. Bxc6 {[%clk 0:02:53]} 15...
bxc6 {[%clk 0:02:17.5]} 16. Ne4 {[%clk 0:02:52.2]} 16... Nd5 {[%clk 0:02:15.9]}
17. Nxd6 {[%clk 0:02:44]} 17... Qxd6 {[%clk 0:02:15.6]} 18. Bh6 {[%clk 0:02:41]}
18... g6 {[%clk 0:02:03.8]} 19. Bxf8 {[%clk 0:02:40.8]} 19... Rxf8 {[%clk
0:02:04.4]} 20. Qe2 {[%clk 0:02:39.6]} 20... Rb8 {[%clk 0:01:59.8]} 21. b3
{[%clk 0:02:38]} 21... Nf4 {[%clk 0:01:58.4]} 22. Qc4 {[%clk 0:02:36.5]} 22...
Rb4 {[%clk 0:01:55]} 23. Qc5 {[%clk 0:02:33.5]} 23... Qxd4 {[%clk 0:01:44.8]}
24. Qxc6 {[%clk 0:02:28.2]} 24... Rb5 {[%clk 0:01:31.6]} 25. Rac1 {[%clk
0:02:20.1]} 25... Ne2+ {[%clk 0:01:24.4]} 26. Kh1 {[%clk 0:02:19.8]} 26... Nxc1
{[%clk 0:01:24.9]} 27. Rxc1 {[%clk 0:02:17.3]} 27... Qxf2 {[%clk 0:01:20.9]} 28.
Qxa6 {[%clk 0:02:17.2]} 28... Rc5 {[%clk 0:01:11.4]} 29. Rf1 {[%clk 0:02:08.2]}
29... Qd2 {[%clk 0:00:55.4]} 30. a4 {[%clk 0:01:41.3]} 30... Rc2 {[%clk
0:00:44.1]} 31. Qa8+ {[%clk 0:01:37.4]} 31... Kg7 {[%clk 0:00:44.6]} 32. Qf3
{[%clk 0:01:35.9]} 32... f5 {[%clk 0:00:41]} 33. h3 {[%clk 0:01:34.8]} 33... Rc3
{[%clk 0:00:39.4]} 34. Qb7+ {[%clk 0:01:31.5]} 34... Kh6 {[%clk 0:00:40.1]} 35.
Qb8 {[%clk 0:01:13.9]} 35... Qe3 {[%clk 0:00:19.8]} 36. Qf8+ {[%clk 0:01:03.8]}
36... Kh5 {[%clk 0:00:19.4]} 37. Qe7 {[%clk 0:00:52.8]} 37... h6 {[%clk
0:00:19.4]} 38. Rg1 {[%clk 0:00:49.5]} 38... f4 {[%clk 0:00:16.1]} 39. b4 {[%clk
0:00:37.4]} 39... Qe4 {[%clk 0:00:16.1]} 40. Kh2 {[%clk 0:00:35.7]} 40... Qe5
{[%clk 0:00:12.1]} 41. Kh1 {[%clk 0:00:32.2]} 41... Qf5 {[%clk 0:00:08.3]} 42.
Rd1 {[%clk 0:00:18.1]} 42... f3 {[%clk 0:00:05.9]} 43. g4+ {[%clk 0:00:17.8]}
1-0

[Event "Late-Titled-Tuesday-Blitz-February-27-2024"]
[Site "Chess.com"]
[Date "2024.02.27"]
[Round "5"]
[White "Statham_01"]
[Black "semchik73"]
[Result "0-1"]
[WhiteElo "2553"]
[BlackElo "2445"]
[TimeControl "180+1"]
[EndTime "14:56:32 PST"]
[Termination "semchik73 won on time"]

1. e4 {[%clk 0:03:00.9]} 1... Nf6 {[%clk 0:02:59.7]} 2. e5 {[%clk 0:03:00.3]}
2... Nd5 {[%clk 0:03:00.1]} 3. f4 {[%clk 0:03:01]} 3... d6 {[%clk 0:03:00.2]} 4.
d4 {[%clk 0:03:01.3]} 4... dxe5 {[%clk 0:02:56.7]} 5. fxe5 {[%clk 0:03:01.3]}
5... Nc6 {[%clk 0:02:57]} 6. Nf3 {[%clk 0:03:01.6]} 6... Bg4 {[%clk 0:02:56.4]}
7. c4 {[%clk 0:02:29.2]} 7... Nb6 {[%clk 0:02:55.9]} 8. e6 {[%clk 0:01:45.8]}
8... fxe6 {[%clk 0:02:45.5]} 9. Be3 {[%clk 0:01:45.5]} 9... e5 {[%clk
0:02:36.8]} 10. d5 {[%clk 0:01:39.1]} 10... e4 {[%clk 0:02:33.7]} 11. Bxb6
{[%clk 0:01:34.1]} 11... axb6 {[%clk 0:02:24.1]} 12. Nc3 {[%clk 0:01:15.1]}
12... exf3 {[%clk 0:01:56.9]} 13. gxf3 {[%clk 0:01:16]} 13... e6 {[%clk
0:01:34.3]} 14. fxg4 {[%clk 0:01:09.4]} 14... Qh4+ {[%clk 0:01:33.7]} 15. Kd2
{[%clk 0:01:08.1]} 15... O-O-O {[%clk 0:01:24.8]} 16. Kc2 {[%clk 0:00:47.7]}
16... exd5 {[%clk 0:01:16.7]} 17. cxd5 {[%clk 0:00:43.1]} 17... Qf2+ {[%clk
0:01:08.6]} 18. Kb1 {[%clk 0:00:28.7]} 18... Nd4 {[%clk 0:00:59.4]} 19. Bd3
{[%clk 0:00:26.7]} 19... Bc5 {[%clk 0:00:46.8]} 20. a3 {[%clk 0:00:24.4]} 20...
Nf3 {[%clk 0:00:36.5]} 21. Ne4 {[%clk 0:00:20.3]} 21... Qe3 {[%clk 0:00:36.1]}
22. Nxc5 {[%clk 0:00:16.2]} 22... bxc5 {[%clk 0:00:36]} 23. Bf5+ {[%clk
0:00:07.9]} 23... Kb8 {[%clk 0:00:35.2]} 24. Ka2 {[%clk 0:00:08.6]} 24... Nd4
{[%clk 0:00:31.2]} 25. Re1 {[%clk 0:00:08.5]} 25... Qf2 {[%clk 0:00:26]} 26. Rc1
{[%clk 0:00:08.4]} 26... Rxd5 {[%clk 0:00:22.4]} 27. Be4 {[%clk 0:00:06.6]}
27... Rd6 {[%clk 0:00:17]} 28. Rxc5 {[%clk 0:00:05.1]} 28... Ne6 {[%clk
0:00:15.1]} 29. Qb3 {[%clk 0:00:03.1]} 29... Nxc5 {[%clk 0:00:15]} 30. Qb4
{[%clk 0:00:02.6]} 30... Qd4 {[%clk 0:00:12.4]} 31. Qb5 {[%clk 0:00:02.5]} 31...
Nxe4 {[%clk 0:00:10.3]} 32. Ka1 {[%clk 0:00:02.9]} 32... Nc5 {[%clk 0:00:09.2]}
33. Rc1 {[%clk 0:00:02.4]} 33... b6 {[%clk 0:00:08]} 34. a4 {[%clk 0:00:02.1]}
34... Qd3 {[%clk 0:00:07.2]} 35. Qb4 {[%clk 0:00:02]} 35... Nb3+ {[%clk
0:00:07.2]} 36. Ka2 {[%clk 0:00:02.6]} 36... Nxc1+ {[%clk 0:00:07.7]} 37. Ka1
{[%clk 0:00:03.3]} 37... Qb3 {[%clk 0:00:05.4]} 0-1

[Event "Late-Titled-Tuesday-Blitz-February-27-2024"]
[Site "Chess.com"]
[Date "2024.02.27"]
[Round "5"]
[White "MrKGG1"]
[Black "cthulhuuu"]
[Result "1-0"]
[WhiteElo "2587"]
[BlackElo "2437"]
[TimeControl "180+1"]
[EndTime "14:56:34 PST"]
[Termination "MrKGG1 won by resignation"]

1. Nf3 {[%clk 0:03:00.9]} 1... Nf6 {[%clk 0:02:58.6]} 2. d4 {[%clk 0:03:00.2]}
2... g6 {[%clk 0:02:58.6]} 3. Bg5 {[%clk 0:02:59.1]} 3... Bg7 {[%clk 0:02:58.6]}
4. Nbd2 {[%clk 0:02:58.7]} 4... d5 {[%clk 0:02:57.9]} 5. e3 {[%clk 0:02:57.1]}
5... c6 {[%clk 0:02:52.5]} 6. Bd3 {[%clk 0:02:53.1]} 6... Qb6 {[%clk 0:02:46.5]}
7. Rb1 {[%clk 0:02:44.4]} 7... O-O {[%clk 0:02:45]} 8. O-O {[%clk 0:02:43.4]}
8... Nbd7 {[%clk 0:02:33.8]} 9. Re1 {[%clk 0:02:38.6]} 9... h6 {[%clk
0:02:31.5]} 10. Bf4 {[%clk 0:02:36.3]} 10... g5 {[%clk 0:02:30.3]} 11. Bg3
{[%clk 0:02:34.6]} 11... Nh5 {[%clk 0:02:29.7]} 12. c3 {[%clk 0:02:30.5]} 12...
Nxg3 {[%clk 0:02:28.8]} 13. hxg3 {[%clk 0:02:31.4]} 13... e5 {[%clk 0:02:22.6]}
14. dxe5 {[%clk 0:02:25.8]} 14... Nxe5 {[%clk 0:02:23.5]} 15. Nxe5 {[%clk
0:02:22.6]} 15... Bxe5 {[%clk 0:02:24.4]} 16. e4 {[%clk 0:02:01.5]} 16... Bxg3
{[%clk 0:02:09.2]} 17. Qf3 {[%clk 0:01:55]} 17... Bf4 {[%clk 0:02:08.3]} 18. Nf1
{[%clk 0:01:44.7]} 18... dxe4 {[%clk 0:02:07.7]} 19. Qxe4 {[%clk 0:01:41.7]}
19... f5 {[%clk 0:02:02.3]} 20. Qe7 {[%clk 0:01:28]} 20... Qc7 {[%clk
0:01:45.4]} 21. Bc4+ {[%clk 0:01:25.7]} 21... Be6 {[%clk 0:01:32.4]} 22. Bxe6+
{[%clk 0:01:21.8]} 22... Kh8 {[%clk 0:01:32.6]} 23. Qxc7 {[%clk 0:01:21.7]}
23... Bxc7 {[%clk 0:01:32.5]} 24. Rbd1 {[%clk 0:01:17.4]} 24... Bb6 {[%clk
0:01:28.2]} 25. Rd7 {[%clk 0:01:13.9]} 25... Rae8 {[%clk 0:01:22.4]} 26. Rdd1
{[%clk 0:01:12.9]} 26... g4 {[%clk 0:01:17.2]} 27. Bc4 {[%clk 0:00:42.9]} 27...
Rxe1 {[%clk 0:01:05.1]} 28. Rxe1 {[%clk 0:00:42.4]} 28... f4 {[%clk 0:01:06]}
29. Nd2 {[%clk 0:00:25.4]} 29... g3 {[%clk 0:00:56.1]} 30. Ne4 {[%clk
0:00:23.9]} 30... h5 {[%clk 0:00:32]} 31. Kf1 {[%clk 0:00:20.3]} 31... h4 {[%clk
0:00:20]} 32. f3 {[%clk 0:00:15.6]} 32... Rf5 {[%clk 0:00:17.6]} 33. Be6 {[%clk
0:00:13.2]} 33... Rb5 {[%clk 0:00:14.4]} 34. b3 {[%clk 0:00:11.9]} 34... Re5
{[%clk 0:00:14.2]} 35. Bh3 {[%clk 0:00:11.5]} 35... Ba5 {[%clk 0:00:13.1]} 36.
Rd1 {[%clk 0:00:11.3]} 36... b5 {[%clk 0:00:11.4]} 37. Rd6 {[%clk 0:00:08.2]}
37... Rd5 {[%clk 0:00:10.2]} 38. Rxd5 {[%clk 0:00:06.5]} 38... cxd5 {[%clk
0:00:11.1]} 39. Nf6 {[%clk 0:00:06.7]} 39... Bxc3 {[%clk 0:00:09.5]} 40. Nxd5
{[%clk 0:00:06.9]} 40... Be5 {[%clk 0:00:08.2]} 41. Ke2 {[%clk 0:00:06.6]} 41...
Kg8 {[%clk 0:00:07.8]} 42. Kd3 {[%clk 0:00:07.5]} 42... Kf7 {[%clk 0:00:07.9]}
43. Ke4 {[%clk 0:00:08.4]} 43... Bd6 {[%clk 0:00:06.4]} 44. Nxf4 {[%clk
0:00:08.6]} 1-0

[Event "Late-Titled-Tuesday-Blitz-February-27-2024"]
[Site "Chess.com"]
[Date "2024.02.27"]
[Round "5"]
[White "Ar4uha"]
[Black "KaydenTroffChess"]
[Result "0-1"]
[WhiteElo "2584"]
[BlackElo "2813"]
[TimeControl "180+1"]
[EndTime "14:56:35 PST"]
[Termination "KaydenTroffChess won on time"]

1. e4 {[%clk 0:02:51.7]} 1... c5 {[%clk 0:02:58.7]} 2. Nf3 {[%clk 0:02:51.3]}
2... g6 {[%clk 0:02:58.1]} 3. Bc4 {[%clk 0:02:41.2]} 3... Bg7 {[%clk 0:02:57.5]}
4. O-O {[%clk 0:02:40.8]} 4... e6 {[%clk 0:02:57.6]} 5. c3 {[%clk 0:02:40.6]}
5... Ne7 {[%clk 0:02:57.2]} 6. d4 {[%clk 0:02:38.8]} 6... cxd4 {[%clk
0:02:56.4]} 7. cxd4 {[%clk 0:02:39.7]} 7... d5 {[%clk 0:02:56.7]} 8. exd5 {[%clk
0:02:40.3]} 8... exd5 {[%clk 0:02:56.6]} 9. Bb3 {[%clk 0:02:37.9]} 9... O-O
{[%clk 0:02:56.1]} 10. h3 {[%clk 0:02:38.2]} 10... Nbc6 {[%clk 0:02:54.8]} 11.
Nc3 {[%clk 0:02:38.8]} 11... Be6 {[%clk 0:02:46.1]} 12. Bf4 {[%clk 0:01:56.6]}
12... Nf5 {[%clk 0:01:42.6]} 13. Ne2 {[%clk 0:01:54.1]} 13... Qb6 {[%clk
0:01:39.6]} 14. Be5 {[%clk 0:01:20.4]} 14... Nxe5 {[%clk 0:01:35.7]} 15. dxe5
{[%clk 0:01:18.2]} 15... Rad8 {[%clk 0:01:26.3]} 16. Nf4 {[%clk 0:01:16]} 16...
Bh6 {[%clk 0:01:08.5]} 17. Nd3 {[%clk 0:01:04.4]} 17... d4 {[%clk 0:00:56.7]}
18. Bxe6 {[%clk 0:01:02.9]} 18... fxe6 {[%clk 0:00:57.6]} 19. Qb3 {[%clk
0:01:01]} 19... Ne7 {[%clk 0:00:38]} 20. Rad1 {[%clk 0:00:49.6]} 20... Nc6
{[%clk 0:00:31.7]} 21. Qxb6 {[%clk 0:00:47.8]} 21... axb6 {[%clk 0:00:31.3]} 22.
Rfe1 {[%clk 0:00:48.5]} 22... Rd5 {[%clk 0:00:27.1]} 23. Re4 {[%clk 0:00:47.8]}
23... Rfd8 {[%clk 0:00:26.3]} 24. a3 {[%clk 0:00:47.6]} 24... Kf7 {[%clk
0:00:19]} 25. Rh4 {[%clk 0:00:41.1]} 25... Kg7 {[%clk 0:00:18.8]} 26. Kf1 {[%clk
0:00:41.7]} 26... Rb5 {[%clk 0:00:18.1]} 27. Re4 {[%clk 0:00:25.8]} 27... Rb3
{[%clk 0:00:17]} 28. Ke2 {[%clk 0:00:24.3]} 28... Rd5 {[%clk 0:00:16.9]} 29. g4
{[%clk 0:00:24.3]} 29... g5 {[%clk 0:00:16.3]} 30. h4 {[%clk 0:00:22.6]} 30...
Kg6 {[%clk 0:00:14.2]} 31. hxg5 {[%clk 0:00:18.4]} 31... Bxg5 {[%clk 0:00:15.1]}
32. Nxg5 {[%clk 0:00:17.4]} 32... Kxg5 {[%clk 0:00:16]} 33. f4+ {[%clk
0:00:17.9]} 33... Kg6 {[%clk 0:00:15]} 34. Rf1 {[%clk 0:00:13]} 34... Kf7 {[%clk
0:00:14.9]} 35. f5 {[%clk 0:00:13.4]} 35... Rdb5 {[%clk 0:00:10.5]} 36. fxe6+
{[%clk 0:00:13.4]} 36... Kxe6 {[%clk 0:00:11.4]} 37. Rf6+ {[%clk 0:00:13.8]}
37... Kd5 {[%clk 0:00:11.6]} 38. Rh6 {[%clk 0:00:14.7]} 38... Kxe4 {[%clk
0:00:11.7]} 39. Rxh7 {[%clk 0:00:08.6]} 39... Rxd3 {[%clk 0:00:11.9]} 40. e6
{[%clk 0:00:08.4]} 40... Rxb2+ {[%clk 0:00:12]} 41. Ke1 {[%clk 0:00:08.4]} 41...
Re3+ {[%clk 0:00:12.4]} 42. Kf1 {[%clk 0:00:08.8]} 42... Kd3 {[%clk 0:00:12.2]}
43. Rxb7 {[%clk 0:00:05.5]} 43... Rxe6 {[%clk 0:00:12.1]} 44. g5 {[%clk
0:00:05.4]} 44... Ne5 {[%clk 0:00:12]} 45. a4 {[%clk 0:00:03.7]} 45... Ng4
{[%clk 0:00:12.5]} 46. g6 {[%clk 0:00:01.7]} 46... Nh2+ {[%clk 0:00:12.8]} 0-1

[Event "Late-Titled-Tuesday-Blitz-February-27-2024"]
[Site "Chess.com"]
[Date "2024.02.27"]
[Round "5"]
[White "carloseduar100"]
[Black "secretsuperstar7"]
[Result "0-1"]
[WhiteElo "2370"]
[BlackElo "2506"]
[TimeControl "180+1"]
[EndTime "14:56:36 PST"]
[Termination "secretsuperstar7 won on time"]

1. e4 {[%clk 0:03:00.6]} 1... c5 {[%clk 0:02:46.8]} 2. Nf3 {[%clk 0:02:56.7]}
2... d6 {[%clk 0:02:39.4]} 3. g3 {[%clk 0:02:57.6]} 3... Nf6 {[%clk 0:02:38.7]}
4. d3 {[%clk 0:02:46.1]} 4... Nc6 {[%clk 0:02:38.3]} 5. Bg2 {[%clk 0:02:46.2]}
5... g6 {[%clk 0:02:38.7]} 6. O-O {[%clk 0:02:27.3]} 6... Bg7 {[%clk 0:02:38.4]}
7. Nbd2 {[%clk 0:02:25.3]} 7... O-O {[%clk 0:02:38.1]} 8. c3 {[%clk 0:02:24.6]}
8... Qb6 {[%clk 0:02:24.2]} 9. Re1 {[%clk 0:02:09.2]} 9... e5 {[%clk 0:02:17.8]}
10. a3 {[%clk 0:02:07.8]} 10... a5 {[%clk 0:02:10.9]} 11. Qe2 {[%clk 0:01:49.9]}
11... Be6 {[%clk 0:01:54.6]} 12. h4 {[%clk 0:01:48]} 12... Bg4 {[%clk
0:01:43.9]} 13. Nf1 {[%clk 0:01:42.1]} 13... d5 {[%clk 0:01:17.6]} 14. Ne3
{[%clk 0:01:26.2]} 14... Be6 {[%clk 0:00:42.9]} 15. Ng5 {[%clk 0:01:23]} 15...
d4 {[%clk 0:00:40.8]} 16. cxd4 {[%clk 0:00:57.2]} 16... Nxd4 {[%clk 0:00:40.1]}
17. Qd1 {[%clk 0:00:55.1]} 17... Bb3 {[%clk 0:00:36.4]} 18. Qd2 {[%clk
0:00:54.6]} 18... Rfd8 {[%clk 0:00:31.5]} 19. Qc3 {[%clk 0:00:52.4]} 19... a4
{[%clk 0:00:20.2]} 20. Nc4 {[%clk 0:00:51.8]} 20... Qc7 {[%clk 0:00:20.3]} 21.
Be3 {[%clk 0:00:51.3]} 21... b5 {[%clk 0:00:20.2]} 22. Nd2 {[%clk 0:00:50.7]}
22... Qd6 {[%clk 0:00:17.8]} 23. Nxb3 {[%clk 0:00:48.5]} 23... Nxb3 {[%clk
0:00:17]} 24. Rad1 {[%clk 0:00:49.1]} 24... b4 {[%clk 0:00:17.2]} 25. Qc4 {[%clk
0:00:44.3]} 25... Rac8 {[%clk 0:00:12.4]} 26. Nf3 {[%clk 0:00:39.7]} 26... Qe6
{[%clk 0:00:09.2]} 27. Qb5 {[%clk 0:00:34.8]} 27... bxa3 {[%clk 0:00:05.3]} 28.
bxa3 {[%clk 0:00:26.3]} 28... Ra8 {[%clk 0:00:05.5]} 29. Bxc5 {[%clk 0:00:23.2]}
29... Rdb8 {[%clk 0:00:04.9]} 30. Qc4 {[%clk 0:00:10.4]} 30... Qxc4 {[%clk
0:00:05.1]} 31. dxc4 {[%clk 0:00:11.3]} 31... Nxc5 {[%clk 0:00:05.5]} 32. Nxe5
{[%clk 0:00:12]} 32... Re8 {[%clk 0:00:03.7]} 33. Nc6 {[%clk 0:00:08.1]} 33...
Rac8 {[%clk 0:00:03.8]} 34. e5 {[%clk 0:00:07.6]} 34... Nh5 {[%clk 0:00:02.1]}
35. Bd5 {[%clk 0:00:02.7]} 35... Bf8 {[%clk 0:00:02.1]} 36. Re2 {[%clk
0:00:02.3]} 36... Ne6 {[%clk 0:00:02.1]} 37. Rde1 {[%clk 0:00:02.2]} 37... Nhg7
{[%clk 0:00:02.3]} 38. Nb4 {[%clk 0:00:01.2]} 38... Nf5 {[%clk 0:00:02.5]} 0-1